[Event "Late-Titled-Tuesday-Blitz-September-05-2023"]
[Site "Chess.com"]
[Date "2023.09.05"]
[Round "2"]
[White "Nick12772"]
[Black "karinachess1"]
[Result "1-0"]
[WhiteElo "2350"]
[BlackElo "2551"]
[TimeControl "180+1"]
[EndTime "14:16:37 PDT"]
[Termination "Nick12772 won by resignation"]

1. Nf3 {[%clk 0:03:00.9]} 1... Nf6 {[%clk 0:02:59.8]} 2. g3 {[%clk 0:03:01.4]}
2... g6 {[%clk 0:02:59.4]} 3. Bg2 {[%clk 0:03:01.9]} 3... Bg7 {[%clk 0:03:00]}
4. O-O {[%clk 0:03:02.8]} 4... O-O {[%clk 0:03:00.5]} 5. c4 {[%clk 0:03:03.4]}
5... d6 {[%clk 0:03:00.9]} 6. Nc3 {[%clk 0:03:04.1]} 6... e5 {[%clk 0:03:01.3]}
7. d3 {[%clk 0:03:04.7]} 7... h6 {[%clk 0:02:59.7]} 8. Rb1 {[%clk 0:03:04.9]}
8... Be6 {[%clk 0:02:59.3]} 9. e4 {[%clk 0:02:59.4]} 9... Nc6 {[%clk 0:02:54]}
10. b4 {[%clk 0:02:59.1]} 10... Bg4 {[%clk 0:02:50.7]} 11. h3 {[%clk 0:02:49.6]}
11... Bxf3 {[%clk 0:02:50.5]} 12. Bxf3 {[%clk 0:02:50.5]} 12... Nd4 {[%clk
0:02:50.4]} 13. Bg2 {[%clk 0:02:50.9]} 13... Nd7 {[%clk 0:02:43.7]} 14. Be3
{[%clk 0:02:47.4]} 14... f5 {[%clk 0:02:43.4]} 15. exf5 {[%clk 0:02:41.3]} 15...
gxf5 {[%clk 0:02:43.3]} 16. Bxb7 {[%clk 0:02:39.2]} 16... Rb8 {[%clk 0:02:39]}
17. Bg2 {[%clk 0:02:36.6]} 17... f4 {[%clk 0:02:34]} 18. Bxd4 {[%clk 0:02:31.4]}
18... exd4 {[%clk 0:02:34.9]} 19. Nd5 {[%clk 0:02:17.3]} 19... fxg3 {[%clk
0:02:25.7]} 20. fxg3 {[%clk 0:02:16.9]} 20... Qg5 {[%clk 0:02:17.2]} 21. Qg4
{[%clk 0:01:58.7]} 21... Ne5 {[%clk 0:01:57.9]} 22. Qxg5 {[%clk 0:01:54.5]}
22... hxg5 {[%clk 0:01:58.8]} 23. Be4 {[%clk 0:01:32.8]} 23... c5 {[%clk
0:01:43.6]} 24. b5 {[%clk 0:01:23.8]} 24... g4 {[%clk 0:01:37.5]} 25. hxg4
{[%clk 0:01:12.3]} 25... Nxg4 {[%clk 0:01:35.1]} 26. Ne7+ {[%clk 0:01:10.9]}
26... Kh8 {[%clk 0:01:33.2]} 27. Ng6+ {[%clk 0:01:10.8]} 27... Kg8 {[%clk
0:01:33.7]} 28. Bd5+ {[%clk 0:01:06]} 28... Kh7 {[%clk 0:01:32.6]} 29. Nxf8+
{[%clk 0:01:04.7]} 29... Bxf8 {[%clk 0:01:33.5]} 30. Rf7+ {[%clk 0:01:00.5]}
30... Kg6 {[%clk 0:01:33.2]} 31. Rbf1 {[%clk 0:00:54.1]} 31... Bg7 {[%clk
0:01:22.5]} 32. Be4+ {[%clk 0:00:54]} 32... Kh6 {[%clk 0:01:23]} 33. Rxa7 {[%clk
0:00:47.7]} 33... Nf6 {[%clk 0:01:16.5]} 34. Rf4 {[%clk 0:00:35.2]} 34... d5
{[%clk 0:01:14]} 35. Bxd5 {[%clk 0:00:30.5]} 35... Nxd5 {[%clk 0:01:13.8]} 36.
cxd5 {[%clk 0:00:31.4]} 36... Rxb5 {[%clk 0:01:08.7]} 37. Rh4+ {[%clk
0:00:30.8]} 37... Kg6 {[%clk 0:01:06.7]} 38. Rg4+ {[%clk 0:00:30.6]} 38... Kf6
{[%clk 0:01:07.2]} 39. Rgxg7 {[%clk 0:00:30.6]} 1-0

[Event "Late-Titled-Tuesday-Blitz-September-05-2023"]
[Site "Chess.com"]
[Date "2023.09.05"]
[Round "2"]
[White "nitpicker"]
[Black "Dontmesswithme_2"]
[Result "0-1"]
[WhiteElo "2276"]
[BlackElo "2487"]
[TimeControl "180+1"]
[EndTime "14:16:39 PDT"]
[Termination "Dontmesswithme_2 won by resignation"]

1. d4 {[%clk 0:03:00.9]} 1... d5 {[%clk 0:02:56.7]} 2. c4 {[%clk 0:03:00.9]}
2... c6 {[%clk 0:02:55.5]} 3. Nf3 {[%clk 0:03:00.5]} 3... Nf6 {[%clk 0:02:55.3]}
4. Qb3 {[%clk 0:03:00.5]} 4... dxc4 {[%clk 0:02:54.3]} 5. Qxc4 {[%clk
0:03:00.3]} 5... Bg4 {[%clk 0:02:54.2]} 6. Ne5 {[%clk 0:02:49.6]} 6... Bh5
{[%clk 0:02:52.9]} 7. Nc3 {[%clk 0:02:36.7]} 7... e6 {[%clk 0:02:51.3]} 8. Bg5
{[%clk 0:02:23]} 8... Be7 {[%clk 0:02:48]} 9. e3 {[%clk 0:02:17.5]} 9... Nbd7
{[%clk 0:02:45.8]} 10. f4 {[%clk 0:01:52.1]} 10... Nxe5 {[%clk 0:02:31.6]} 11.
dxe5 {[%clk 0:01:50.8]} 11... Nd5 {[%clk 0:02:29.7]} 12. Bxe7 {[%clk 0:01:50.6]}
12... Qxe7 {[%clk 0:02:30.4]} 13. Qb3 {[%clk 0:01:29]} 13... Nxe3 {[%clk
0:02:07.5]} 14. Ne4 {[%clk 0:01:28.8]} 14... Nf5 {[%clk 0:02:03.7]} 15. Bc4
{[%clk 0:01:13.3]} 15... O-O {[%clk 0:01:57.6]} 16. a4 {[%clk 0:01:10.8]} 16...
Rfd8 {[%clk 0:01:49.1]} 17. O-O {[%clk 0:01:08]} 17... Rd4 {[%clk 0:01:47.3]}
18. Rae1 {[%clk 0:01:01.1]} 18... Rad8 {[%clk 0:01:37.3]} 19. a5 {[%clk
0:00:56.8]} 19... c5 {[%clk 0:01:20.1]} 20. Qc3 {[%clk 0:00:51.4]} 20... b6
{[%clk 0:01:11.7]} 21. a6 {[%clk 0:00:48.4]} 21... Qc7 {[%clk 0:01:04.6]} 22.
Bb5 {[%clk 0:00:38.8]} 22... c4 {[%clk 0:00:59.2]} 23. Rc1 {[%clk 0:00:27.3]}
23... Rxe4 {[%clk 0:00:57.5]} 24. h3 {[%clk 0:00:20]} 24... Qc5+ {[%clk
0:00:55.6]} 25. Kh2 {[%clk 0:00:18.3]} 25... Qxb5 {[%clk 0:00:53.6]} 26. g4
{[%clk 0:00:18.9]} 26... Re2+ {[%clk 0:00:52.8]} 0-1

[Event "Late-Titled-Tuesday-Blitz-September-05-2023"]
[Site "Chess.com"]
[Date "2023.09.05"]
[Round "2"]
[White "MusicCityMaster"]
[Black "K_A_S_T_O_R"]
[Result "0-1"]
[WhiteElo "2446"]
[BlackElo "2950"]
[TimeControl "180+1"]
[EndTime "14:16:44 PDT"]
[Termination "K_A_S_T_O_R won by resignation"]

1. e4 {[%clk 0:03:00.9]} 1... c5 {[%clk 0:02:58.5]} 2. Nf3 {[%clk 0:03:00.8]}
2... d6 {[%clk 0:02:58.4]} 3. d4 {[%clk 0:03:01.5]} 3... cxd4 {[%clk 0:02:58.8]}
4. Nxd4 {[%clk 0:03:02.4]} 4... Nf6 {[%clk 0:02:59.1]} 5. Nc3 {[%clk 0:03:03.2]}
5... a6 {[%clk 0:02:59.6]} 6. Bc4 {[%clk 0:03:03.5]} 6... e6 {[%clk 0:02:59.3]}
7. Bb3 {[%clk 0:03:04.2]} 7... b5 {[%clk 0:02:59.5]} 8. Qe2 {[%clk 0:03:04.5]}
8... Qb6 {[%clk 0:02:49.2]} 9. Be3 {[%clk 0:03:01]} 9... Qb7 {[%clk 0:02:49.6]}
10. f3 {[%clk 0:02:56.9]} 10... b4 {[%clk 0:02:44.5]} 11. Na4 {[%clk 0:02:56.1]}
11... Be7 {[%clk 0:02:42.8]} 12. g4 {[%clk 0:02:45.1]} 12... O-O {[%clk
0:01:53.1]} 13. g5 {[%clk 0:02:45]} 13... Nfd7 {[%clk 0:01:53.2]} 14. h4 {[%clk
0:02:30.4]} 14... Nc5 {[%clk 0:01:51.8]} 15. c3 {[%clk 0:01:46.2]} 15... Bd7
{[%clk 0:01:48.7]} 16. Nxc5 {[%clk 0:01:42.4]} 16... dxc5 {[%clk 0:01:49]} 17.
Nc2 {[%clk 0:01:42.7]} 17... Bb5 {[%clk 0:01:44.7]} 18. c4 {[%clk 0:01:38.6]}
18... Bc6 {[%clk 0:01:44.4]} 19. a4 {[%clk 0:01:17.2]} 19... bxa3 {[%clk
0:01:40.5]} 20. Rxa3 {[%clk 0:01:17.4]} 20... Qc7 {[%clk 0:01:28.8]} 21. Qf2
{[%clk 0:00:51.9]} 21... Bd6 {[%clk 0:01:20.5]} 22. Rg1 {[%clk 0:00:41.6]} 22...
Nd7 {[%clk 0:01:18.1]} 23. Kd2 {[%clk 0:00:39.2]} 23... Rfd8 {[%clk 0:01:14.4]}
24. Kc1 {[%clk 0:00:39.2]} 24... Bf4 {[%clk 0:01:14.6]} 25. Rg4 {[%clk
0:00:32.2]} 25... Bxe3+ {[%clk 0:01:10.2]} 26. Nxe3 {[%clk 0:00:33.1]} 26... Ne5
{[%clk 0:01:10.5]} 27. Bc2 {[%clk 0:00:23.7]} 27... Nxg4 {[%clk 0:01:09.4]} 28.
fxg4 {[%clk 0:00:24.6]} 28... Qe5 {[%clk 0:01:05.9]} 29. Qf3 {[%clk 0:00:15.6]}
29... Rab8 {[%clk 0:01:05.4]} 30. Rc3 {[%clk 0:00:14.5]} 30... Qd4 {[%clk
0:01:01.3]} 31. h5 {[%clk 0:00:11.6]} 31... Qd2+ {[%clk 0:01:00.9]} 32. Kb1
{[%clk 0:00:12.3]} 32... Qxc3 {[%clk 0:01:00]} 0-1

[Event "Late-Titled-Tuesday-Blitz-September-05-2023"]
[Site "Chess.com"]
[Date "2023.09.05"]
[Round "2"]
[White "Mikhail_Golubev"]
[Black "GM_dmitrij"]
[Result "0-1"]
[WhiteElo "2596"]
[BlackElo "3028"]
[TimeControl "180+1"]
[EndTime "14:16:45 PDT"]
[Termination "GM_dmitrij won by resignation"]

1. e4 {[%clk 0:03:00.9]} 1... c5 {[%clk 0:02:58.7]} 2. Nf3 {[%clk 0:03:01]} 2...
Nc6 {[%clk 0:02:59.2]} 3. Nc3 {[%clk 0:03:00.4]} 3... d6 {[%clk 0:02:58.6]} 4.
d4 {[%clk 0:03:00.3]} 4... cxd4 {[%clk 0:02:59.5]} 5. Nxd4 {[%clk 0:03:00.6]}
5... Nf6 {[%clk 0:03:00.4]} 6. Bc4 {[%clk 0:02:59.3]} 6... e6 {[%clk 0:03:00.3]}
7. Be3 {[%clk 0:02:58.6]} 7... Bd7 {[%clk 0:03:00.2]} 8. Bb3 {[%clk 0:02:53.2]}
8... Be7 {[%clk 0:02:54.5]} 9. f4 {[%clk 0:02:52.5]} 9... O-O {[%clk 0:02:49.4]}
10. Qf3 {[%clk 0:02:37.6]} 10... e5 {[%clk 0:02:38.3]} 11. Nxc6 {[%clk
0:02:31.8]} 11... bxc6 {[%clk 0:02:39.2]} 12. fxe5 {[%clk 0:02:29.6]} 12... dxe5
{[%clk 0:02:40.1]} 13. O-O-O {[%clk 0:02:25]} 13... Qc7 {[%clk 0:02:38]} 14. h3
{[%clk 0:02:20.9]} 14... a5 {[%clk 0:02:36.6]} 15. g4 {[%clk 0:01:59.9]} 15...
Be6 {[%clk 0:02:33.3]} 16. g5 {[%clk 0:01:57.2]} 16... Ne8 {[%clk 0:02:18.3]}
17. Bxe6 {[%clk 0:01:51.9]} 17... fxe6 {[%clk 0:02:19.2]} 18. Qg4 {[%clk
0:01:51.9]} 18... Qc8 {[%clk 0:02:19.8]} 19. Na4 {[%clk 0:01:47.2]} 19... Bd8
{[%clk 0:02:08.2]} 20. Bb6 {[%clk 0:01:22.1]} 20... Be7 {[%clk 0:02:00.7]} 21.
Bc5 {[%clk 0:01:12.8]} 21... Rf4 {[%clk 0:01:59.8]} 22. Bxe7 {[%clk 0:00:52.6]}
22... Rxg4 {[%clk 0:01:57.4]} 23. hxg4 {[%clk 0:00:53.5]} 23... Qc7 {[%clk
0:01:43.4]} 24. Ba3 {[%clk 0:00:37]} 24... Rd8 {[%clk 0:01:41]} 25. Rxd8 {[%clk
0:00:35.2]} 25... Qxd8 {[%clk 0:01:41.9]} 26. Rf1 {[%clk 0:00:34.2]} 26... Qxg5+
{[%clk 0:01:41.3]} 27. Kb1 {[%clk 0:00:30.9]} 27... Nf6 {[%clk 0:01:41.9]} 28.
b3 {[%clk 0:00:17.1]} 28... Qxg4 {[%clk 0:01:41]} 29. Nc5 {[%clk 0:00:16]} 29...
h5 {[%clk 0:01:40.9]} 30. Bb2 {[%clk 0:00:12.5]} 30... Qg2 {[%clk 0:01:39]} 31.
Rd1 {[%clk 0:00:11.3]} 31... h4 {[%clk 0:01:28.7]} 32. Nxe6 {[%clk 0:00:10.8]}
32... h3 {[%clk 0:01:25.8]} 33. Bxe5 {[%clk 0:00:10.2]} 33... h2 {[%clk
0:01:24.1]} 34. Bxh2 {[%clk 0:00:08.7]} 34... Qxh2 {[%clk 0:01:25]} 35. Ng5
{[%clk 0:00:07.6]} 35... Qc7 {[%clk 0:01:20.2]} 36. Ne6 {[%clk 0:00:05.8]} 36...
Qe7 {[%clk 0:01:18.2]} 0-1

[Event "Late-Titled-Tuesday-Blitz-September-05-2023"]
[Site "Chess.com"]
[Date "2023.09.05"]
[Round "2"]
[White "antispeciesism"]
[Black "Emp3rador"]
[Result "0-1"]
[WhiteElo "2048"]
[BlackElo "2502"]
[TimeControl "180+1"]
[EndTime "14:16:48 PDT"]
[Termination "Emp3rador won by resignation"]

1. d4 {[%clk 0:03:00.9]} 1... d5 {[%clk 0:02:59.7]} 2. c4 {[%clk 0:03:01.1]}
2... c6 {[%clk 0:02:59.9]} 3. cxd5 {[%clk 0:03:01.2]} 3... cxd5 {[%clk
0:02:59.2]} 4. Nc3 {[%clk 0:03:02.1]} 4... Nf6 {[%clk 0:02:59.4]} 5. Bf4 {[%clk
0:03:02.8]} 5... a6 {[%clk 0:02:59.7]} 6. e3 {[%clk 0:03:03.4]} 6... Nc6 {[%clk
0:03:00.2]} 7. Bd3 {[%clk 0:03:03.4]} 7... Bg4 {[%clk 0:03:00.2]} 8. f3 {[%clk
0:03:03.8]} 8... Bh5 {[%clk 0:02:59.3]} 9. Nge2 {[%clk 0:03:04.4]} 9... Bg6
{[%clk 0:02:59.6]} 10. O-O {[%clk 0:03:04.6]} 10... e6 {[%clk 0:02:57.7]} 11.
Na4 {[%clk 0:02:54.6]} 11... Bxd3 {[%clk 0:02:51.7]} 12. Qxd3 {[%clk 0:02:54.2]}
12... Rc8 {[%clk 0:02:48.7]} 13. Rfc1 {[%clk 0:02:40]} 13... Nd7 {[%clk
0:02:43.5]} 14. e4 {[%clk 0:01:44.1]} 14... Be7 {[%clk 0:02:32.4]} 15. Nac3
{[%clk 0:01:38.7]} 15... Nb6 {[%clk 0:02:22]} 16. a4 {[%clk 0:01:17.3]} 16...
Nb4 {[%clk 0:01:44.7]} 17. Qd1 {[%clk 0:01:09]} 17... Nc4 {[%clk 0:01:44.7]} 18.
exd5 {[%clk 0:00:54.5]} 18... exd5 {[%clk 0:01:27.6]} 19. Ng3 {[%clk 0:00:36.4]}
19... O-O {[%clk 0:01:19]} 20. b3 {[%clk 0:00:19.1]} 20... Na5 {[%clk
0:01:14.3]} 21. Rab1 {[%clk 0:00:16.3]} 21... Re8 {[%clk 0:01:10.7]} 22. Qf1
{[%clk 0:00:08.5]} 22... Bf8 {[%clk 0:01:04.3]} 23. Bd2 {[%clk 0:00:07.8]} 23...
Qb6 {[%clk 0:01:00.3]} 24. Kh1 {[%clk 0:00:07.2]} 24... Qxd4 {[%clk 0:00:55.9]}
25. Rd1 {[%clk 0:00:04.8]} 25... Qd3 {[%clk 0:00:55.8]} 26. Qxd3 {[%clk
0:00:01.6]} 26... Nxd3 {[%clk 0:00:56.1]} 27. Kg1 {[%clk 0:00:01.6]} 0-1

[Event "Late-Titled-Tuesday-Blitz-September-05-2023"]
[Site "Chess.com"]
[Date "2023.09.05"]
[Round "2"]
[White "PotapovaM"]
[Black "Dzidzik2203"]
[Result "1-0"]
[WhiteElo "2663"]
[BlackElo "2343"]
[TimeControl "180+1"]
[EndTime "14:16:50 PDT"]
[Termination "PotapovaM won by resignation"]

1. Nf3 {[%clk 0:03:00.9]} 1... Nf6 {[%clk 0:02:59.6]} 2. c4 {[%clk 0:02:59.9]}
2... e6 {[%clk 0:02:56.4]} 3. d4 {[%clk 0:02:55.4]} 3... b6 {[%clk 0:02:54]} 4.
a3 {[%clk 0:02:50.8]} 4... Bb7 {[%clk 0:02:52.2]} 5. Nc3 {[%clk 0:02:51.5]} 5...
d5 {[%clk 0:02:49.7]} 6. cxd5 {[%clk 0:02:51.5]} 6... Nxd5 {[%clk 0:02:50]} 7.
Qc2 {[%clk 0:02:49.2]} 7... Be7 {[%clk 0:02:49]} 8. e4 {[%clk 0:02:49.3]} 8...
Nxc3 {[%clk 0:02:49.5]} 9. bxc3 {[%clk 0:02:50.2]} 9... O-O {[%clk 0:02:50]} 10.
Bd3 {[%clk 0:02:50.9]} 10... c5 {[%clk 0:02:50.5]} 11. O-O {[%clk 0:02:51]}
11... cxd4 {[%clk 0:02:51]} 12. cxd4 {[%clk 0:02:50.4]} 12... Qc8 {[%clk
0:02:51.7]} 13. Qe2 {[%clk 0:02:49.9]} 13... Ba6 {[%clk 0:02:51.9]} 14. Bb2
{[%clk 0:02:49.3]} 14... Bxd3 {[%clk 0:02:37]} 15. Qxd3 {[%clk 0:02:50.2]} 15...
Qa6 {[%clk 0:02:31]} 16. Qe3 {[%clk 0:02:46.6]} 16... Nd7 {[%clk 0:02:29.6]} 17.
d5 {[%clk 0:02:41.7]} 17... Bc5 {[%clk 0:02:07.6]} 18. Qg5 {[%clk 0:02:39.1]}
18... f6 {[%clk 0:02:04.3]} 19. Qg4 {[%clk 0:02:39]} 19... Rae8 {[%clk
0:01:48.8]} 20. dxe6 {[%clk 0:02:38.1]} 20... Nb8 {[%clk 0:01:49.1]} 21. Nh4
{[%clk 0:02:03.9]} 21... Qc4 {[%clk 0:01:39.2]} 22. Nf5 {[%clk 0:02:00.3]} 22...
g6 {[%clk 0:01:39.6]} 23. Nh6+ {[%clk 0:01:56.2]} 23... Kg7 {[%clk 0:01:39.9]}
24. Nf5+ {[%clk 0:01:36.6]} 24... Kh8 {[%clk 0:01:38.9]} 25. e7 {[%clk
0:01:13.8]} 25... Bxe7 {[%clk 0:01:22.1]} 26. Ne3 {[%clk 0:01:12.6]} 26... Qf7
{[%clk 0:01:02]} 27. Nd5 {[%clk 0:01:11.5]} 27... Nc6 {[%clk 0:00:47.3]} 28.
Rac1 {[%clk 0:01:11.6]} 28... Rc8 {[%clk 0:00:38.5]} 29. Qd7 {[%clk 0:01:11.1]}
29... Rfd8 {[%clk 0:00:32.5]} 30. Qb7 {[%clk 0:01:00.5]} 30... Qe8 {[%clk
0:00:21.3]} 31. Nxe7 {[%clk 0:00:47]} 1-0

[Event "Late-Titled-Tuesday-Blitz-September-05-2023"]
[Site "Chess.com"]
[Date "2023.09.05"]
[Round "2"]
[White "KrokerGuy"]
[Black "Javylavilla"]
[Result "1-0"]
[WhiteElo "2499"]
[BlackElo "2291"]
[TimeControl "180+1"]
[EndTime "14:16:52 PDT"]
[Termination "KrokerGuy won by resignation"]

1. e4 {[%clk 0:03:00.9]} 1... c5 {[%clk 0:02:59.9]} 2. Nf3 {[%clk 0:03:01.5]}
2... d6 {[%clk 0:02:58.7]} 3. d4 {[%clk 0:03:02.1]} 3... cxd4 {[%clk 0:02:59.6]}
4. Nxd4 {[%clk 0:03:02.8]} 4... Nf6 {[%clk 0:02:59.9]} 5. Nc3 {[%clk 0:03:03.5]}
5... Nc6 {[%clk 0:02:59.5]} 6. Bg5 {[%clk 0:03:03.9]} 6... Bd7 {[%clk
0:02:56.7]} 7. Qd2 {[%clk 0:03:03.4]} 7... Rc8 {[%clk 0:02:56.7]} 8. O-O-O
{[%clk 0:03:03.3]} 8... Nxd4 {[%clk 0:02:56.3]} 9. Qxd4 {[%clk 0:03:04.2]} 9...
Qa5 {[%clk 0:02:56.5]} 10. f4 {[%clk 0:02:55.8]} 10... Rxc3 {[%clk 0:02:53.5]}
11. Bxf6 {[%clk 0:02:52.8]} 11... Rc8 {[%clk 0:02:14.8]} 12. Bxg7 {[%clk
0:02:46]} 12... e5 {[%clk 0:02:10.7]} 13. Bxe5 {[%clk 0:02:44.7]} 13... Qa4
{[%clk 0:01:53.6]} 14. Qxa4 {[%clk 0:02:35.5]} 14... Bxa4 {[%clk 0:01:54.5]} 15.
Bxh8 {[%clk 0:02:36.1]} 15... Bxc2 {[%clk 0:01:52.7]} 16. Rd2 {[%clk 0:02:21.7]}
16... Bxe4+ {[%clk 0:01:52.3]} 17. Bc3 {[%clk 0:02:22.3]} 17... Bg7 {[%clk
0:01:50.4]} 18. Bb5+ {[%clk 0:02:20.5]} 18... Kf8 {[%clk 0:01:49.9]} 19. Re1
{[%clk 0:01:52.8]} 19... d5 {[%clk 0:01:49.3]} 20. Re3 {[%clk 0:01:44.1]} 20...
f5 {[%clk 0:01:46.1]} 21. Kd1 {[%clk 0:01:41.7]} 21... Bh6 {[%clk 0:01:44.9]}
22. g3 {[%clk 0:01:41.2]} 22... Kf7 {[%clk 0:01:44]} 23. Bd3 {[%clk 0:01:33.4]}
23... Ke6 {[%clk 0:01:42.9]} 24. Bxe4 {[%clk 0:01:33.6]} 24... fxe4 {[%clk
0:01:43.8]} 25. Be5 {[%clk 0:01:26.5]} 25... Bf8 {[%clk 0:01:40.9]} 26. Rb3
{[%clk 0:01:24.5]} 26... b6 {[%clk 0:01:40.2]} 27. Rb5 {[%clk 0:01:23.5]} 27...
Bc5 {[%clk 0:01:36.1]} 28. Bd4 {[%clk 0:01:23.7]} 28... Kd6 {[%clk 0:01:19.7]}
29. Bxc5+ {[%clk 0:01:23.2]} 29... bxc5 {[%clk 0:01:20.6]} 30. Rb7 {[%clk
0:01:23.3]} 30... d4 {[%clk 0:01:20.4]} 31. b4 {[%clk 0:01:18.5]} 31... e3
{[%clk 0:01:16.1]} 32. bxc5+ {[%clk 0:01:18.8]} 32... Kc6 {[%clk 0:01:02.4]} 33.
Rdb2 {[%clk 0:01:14.2]} 33... Re8 {[%clk 0:00:54.7]} 34. Ke2 {[%clk 0:01:10.8]}
34... Kd5 {[%clk 0:00:53.6]} 35. Kd3 {[%clk 0:01:11.7]} 35... Kxc5 {[%clk
0:00:50]} 36. R7b5+ {[%clk 0:01:03.1]} 36... Kc6 {[%clk 0:00:49.3]} 37. Re5
{[%clk 0:01:03.3]} 37... Rd8 {[%clk 0:00:47.4]} 38. Rb4 {[%clk 0:01:02.8]} 38...
a5 {[%clk 0:00:41.9]} 39. Rxd4 {[%clk 0:01:02.9]} 39... Rb8 {[%clk 0:00:42.6]}
40. Rxe3 {[%clk 0:01:02.2]} 40... Rb2 {[%clk 0:00:42.4]} 41. Re2 {[%clk
0:01:02.9]} 41... Rb1 {[%clk 0:00:41.6]} 42. Re6+ {[%clk 0:01:02.1]} 42... Kc5
{[%clk 0:00:41.3]} 43. Re5+ {[%clk 0:01:02.8]} 43... Kc6 {[%clk 0:00:41]} 44.
Rxa5 {[%clk 0:01:00.8]} 1-0

[Event "Late-Titled-Tuesday-Blitz-September-05-2023"]
[Site "Chess.com"]
[Date "2023.09.05"]
[Round "2"]
[White "Sajkochess"]
[Black "KATPAH"]
[Result "0-1"]
[WhiteElo "2393"]
[BlackElo "2671"]
[TimeControl "180+1"]
[EndTime "14:16:55 PDT"]
[Termination "KATPAH won on time"]

1. e4 {[%clk 0:03:00.9]} 1... e5 {[%clk 0:03:00]} 2. Nf3 {[%clk 0:02:54.1]} 2...
d6 {[%clk 0:03:00.3]} 3. d4 {[%clk 0:02:53.4]} 3... Bg4 {[%clk 0:03:00.9]} 4.
dxe5 {[%clk 0:02:53.1]} 4... Nd7 {[%clk 0:03:01.6]} 5. exd6 {[%clk 0:02:52.3]}
5... Bxd6 {[%clk 0:03:02.5]} 6. h3 {[%clk 0:02:52.7]} 6... Bh5 {[%clk 0:03:02]}
7. Be2 {[%clk 0:02:50.8]} 7... Ngf6 {[%clk 0:03:02.6]} 8. Nbd2 {[%clk
0:02:44.7]} 8... Qe7 {[%clk 0:03:03]} 9. O-O {[%clk 0:02:43.5]} 9... O-O-O
{[%clk 0:03:02.6]} 10. Re1 {[%clk 0:02:39.6]} 10... Ne5 {[%clk 0:03:00.1]} 11.
Nxe5 {[%clk 0:02:34.1]} 11... Qxe5 {[%clk 0:03:01]} 12. g3 {[%clk 0:02:33.6]}
12... Bc5 {[%clk 0:02:59.2]} 13. Kg2 {[%clk 0:02:19.4]} 13... Bg6 {[%clk
0:02:47.4]} 14. Bf3 {[%clk 0:02:10.8]} 14... h5 {[%clk 0:02:47]} 15. Qe2 {[%clk
0:02:03]} 15... h4 {[%clk 0:02:40.8]} 16. Nc4 {[%clk 0:01:58.8]} 16... Qe7
{[%clk 0:02:40.8]} 17. Bg5 {[%clk 0:01:44]} 17... hxg3 {[%clk 0:02:40.7]} 18. e5
{[%clk 0:01:42]} 18... Qe6 {[%clk 0:02:33.1]} 19. Rh1 {[%clk 0:01:00.7]} 19...
Nd5 {[%clk 0:02:27.6]} 20. Bg4 {[%clk 0:00:46.6]} 20... Bf5 {[%clk 0:02:27.5]}
21. Bxf5 {[%clk 0:00:41.3]} 21... Qxf5 {[%clk 0:02:28.4]} 22. Qg4 {[%clk
0:00:40.2]} 22... Qxg4 {[%clk 0:02:23.4]} 23. hxg4 {[%clk 0:00:40.4]} 23... f6
{[%clk 0:02:21.7]} 24. exf6 {[%clk 0:00:33.9]} 24... gxf6 {[%clk 0:02:22]} 25.
Rxh8 {[%clk 0:00:23.6]} 25... Rxh8 {[%clk 0:02:20.8]} 26. Be3 {[%clk 0:00:24.3]}
26... Nxe3+ {[%clk 0:02:16.2]} 27. Nxe3 {[%clk 0:00:20.2]} 27... gxf2 {[%clk
0:02:08.5]} 28. Kxf2 {[%clk 0:00:19.3]} 28... Rh2+ {[%clk 0:02:02.3]} 29. Kg3
{[%clk 0:00:18]} 29... Re2 {[%clk 0:02:01.2]} 30. Nd5 {[%clk 0:00:13.9]} 30...
Rxc2 {[%clk 0:02:00]} 31. Nxf6 {[%clk 0:00:12.3]} 31... Rxb2 {[%clk 0:02:00.5]}
32. Rh1 {[%clk 0:00:10.5]} 32... Bd6+ {[%clk 0:01:57.4]} 33. Kf3 {[%clk
0:00:10.7]} 33... b5 {[%clk 0:01:57.9]} 34. g5 {[%clk 0:00:07.8]} 34... Rb4
{[%clk 0:01:53.4]} 35. Rh8+ {[%clk 0:00:02.1]} 35... Kb7 {[%clk 0:01:53.3]} 36.
Rh6 {[%clk 0:00:03]} 36... Rf4+ {[%clk 0:01:53]} 37. Ke3 {[%clk 0:00:03.1]}
37... Rf1 {[%clk 0:01:53.2]} 38. Kd4 {[%clk 0:00:02.8]} 38... Bf4 {[%clk
0:01:52.1]} 39. Rg6 {[%clk 0:00:03]} 39... Rg1 {[%clk 0:01:51.8]} 40. Ne4 {[%clk
0:00:03.4]} 40... a6 {[%clk 0:01:42.4]} 41. Nc5+ {[%clk 0:00:03.5]} 41... Kb8
{[%clk 0:01:37.4]} 42. Nxa6+ {[%clk 0:00:03.3]} 42... Ka7 {[%clk 0:01:37.6]} 43.
Nc5 {[%clk 0:00:03.1]} 43... Rxg5 {[%clk 0:01:37.8]} 44. Rxg5 {[%clk 0:00:03.3]}
44... Bxg5 {[%clk 0:01:38.7]} 45. Kd5 {[%clk 0:00:02.5]} 45... Kb6 {[%clk
0:01:37.2]} 46. Ne6 {[%clk 0:00:02.7]} 46... c6+ {[%clk 0:01:37.1]} 47. Kd6
{[%clk 0:00:01.5]} 47... Bf6 {[%clk 0:01:37.7]} 0-1

[Event "Late-Titled-Tuesday-Blitz-September-05-2023"]
[Site "Chess.com"]
[Date "2023.09.05"]
[Round "2"]
[White "MariaFominykh"]
[Black "DawidCzerw"]
[Result "0-1"]
[WhiteElo "2289"]
[BlackElo "2499"]
[TimeControl "180+1"]
[EndTime "14:16:57 PDT"]
[Termination "DawidCzerw won on time"]

1. d4 {[%clk 0:03:00.9]} 1... Nf6 {[%clk 0:03:00.2]} 2. c4 {[%clk 0:03:00.9]}
2... e6 {[%clk 0:03:00.7]} 3. Nf3 {[%clk 0:03:00.1]} 3... d5 {[%clk 0:03:00.8]}
4. Nc3 {[%clk 0:02:57.8]} 4... c6 {[%clk 0:03:00.7]} 5. Bg5 {[%clk 0:02:52.2]}
5... dxc4 {[%clk 0:03:00.1]} 6. e4 {[%clk 0:02:50]} 6... b5 {[%clk 0:03:00.6]}
7. e5 {[%clk 0:02:50.4]} 7... h6 {[%clk 0:03:01.1]} 8. Bh4 {[%clk 0:02:50.4]}
8... g5 {[%clk 0:03:01.6]} 9. Bg3 {[%clk 0:02:50.6]} 9... Nd5 {[%clk 0:02:55.7]}
10. Be2 {[%clk 0:02:50.6]} 10... Qa5 {[%clk 0:02:52.3]} 11. Qd2 {[%clk 0:02:42]}
11... Bb4 {[%clk 0:02:50.8]} 12. Rc1 {[%clk 0:02:41.9]} 12... Nd7 {[%clk
0:02:43]} 13. O-O {[%clk 0:02:32.8]} 13... Bb7 {[%clk 0:02:42.8]} 14. Qc2 {[%clk
0:02:18.6]} 14... Nxc3 {[%clk 0:02:34.5]} 15. bxc3 {[%clk 0:02:19]} 15... Ba3
{[%clk 0:02:30.7]} 16. Rb1 {[%clk 0:02:18.6]} 16... c5 {[%clk 0:02:27.7]} 17.
Bxc4 {[%clk 0:02:08.5]} 17... Bxf3 {[%clk 0:02:27.4]} 18. Rxb5 {[%clk
0:02:08.5]} 18... Qc7 {[%clk 0:02:16.7]} 19. gxf3 {[%clk 0:02:06.7]} 19... cxd4
{[%clk 0:02:11]} 20. Qb3 {[%clk 0:00:57.1]} 20... Rc8 {[%clk 0:01:49.7]} 21.
Bxe6 {[%clk 0:00:30.7]} 21... fxe6 {[%clk 0:01:50.6]} 22. Qxe6+ {[%clk
0:00:20.1]} 22... Be7 {[%clk 0:01:48.2]} 23. Qg6+ {[%clk 0:00:19.9]} 23... Kd8
{[%clk 0:01:23.3]} 24. e6 {[%clk 0:00:20.8]} 24... Qc6 {[%clk 0:01:17.1]} 25.
Rf5 {[%clk 0:00:04.9]} 25... Nb6 {[%clk 0:01:01.1]} 26. cxd4 {[%clk 0:00:01.4]}
26... Nd5 {[%clk 0:00:49.9]} 0-1